[Event "FIDE Grand Swiss 2023"]
[Site "Villa Marina, Douglas, Isle of Man"]
[Date "2023.10.27"]
[Round "3.5"]
[White "Giri, Anish"]
[Black "Bacrot, Etienne"]
[Result "1/2-1/2"]
[WhiteElo "2760"]
[BlackElo "2669"]
[EventDate "2023.10.25"]
[ECO "C00"]
[PlyCount "82"]
[BlackFideId "605506"]
[TimeControl "40/100 + 20/50 + 15 + 30s/move"]
[WhiteFideId "24116068"]

1.e4 {[%clk 01:40:57] [%emt 00:00:02]} 1...c5 {[%clk 01:40:51] [%emt 00:00:09]} 
2.Nf3 {[%clk 01:41:21] [%emt 00:00:06]} 2...e6 {[%clk 01:41:17] [%emt 00:00:04]} 
3.d3 {[%clk 01:41:46] [%emt 00:00:06]} 3...Nc6 {[%clk 01:38:13] [%emt 00:03:34]} 
4.g3 {[%clk 01:41:47] [%emt 00:00:28]} 4...d5 {[%clk 01:38:03] [%emt 00:00:40]} 
5.Qe2 {[%clk 01:41:42] [%emt 00:00:36]} 5...Nf6 {[%clk 01:23:13] [%emt
00:15:20]} 6.Bg2 {[%clk 01:42:01] [%emt 00:00:10]} 6...Be7 {[%clk 01:22:17]
[%emt 00:01:26]} 7.a4 {[%clk 01:42:25] [%emt 00:00:06]} 7...dxe4 {[%clk
01:17:45] [%emt 00:05:02]} 8.dxe4 {[%clk 01:42:49] [%emt 00:00:07]} 8...e5 
{[%clk 01:18:12] [%emt 00:00:03]} 9.c3 {[%clk 01:42:28] [%emt 00:00:50]} 
9...O-O {[%clk 01:14:31] [%emt 00:04:11]} 10.O-O {[%clk 01:42:13] [%emt
00:00:45]} 10...Qc7 {[%clk 01:12:30] [%emt 00:02:31]} 11.Na3 {[%clk 01:35:55]
[%emt 00:06:49]} 11...Na5 {[%clk 01:06:03] [%emt 00:06:56]} 12.Nd2 {[%clk
01:34:04] [%emt 00:02:21]} 12...Rd8 {[%clk 00:52:37] [%emt 00:13:56]} 13.Nac4 
{[%clk 01:31:32] [%emt 00:03:03]} 13...Bg4 {[%clk 00:37:38] [%emt 00:15:29]} 
14.f3 {[%clk 01:26:20] [%emt 00:05:41]} 14...Bh5 {[%clk 00:33:03] [%emt
00:05:05]} 15.Rf2 {[%clk 01:02:46] [%emt 00:24:05]} 15...Nd7 {[%clk 00:30:12]
[%emt 00:03:20]} 16.Bf1 {[%clk 00:53:04] [%emt 00:10:12]} 16...Nxc4 {[%clk
00:21:53] [%emt 00:08:49]} 17.Nxc4 {[%clk 00:53:28] [%emt 00:00:06]} 17...Nb6 
{[%clk 00:22:21] [%emt 00:00:03]} 18.Qc2 {[%clk 00:47:02] [%emt 00:06:55]} 
18...f6 {[%clk 00:19:56] [%emt 00:02:55]} 19.Ne3 {[%clk 00:44:16] [%emt
00:03:16]} 19...a5 {[%clk 00:17:23] [%emt 00:03:03]} 20.c4 {[%clk 00:44:24]
[%emt 00:00:23]} 20...Bf8 {[%clk 00:16:56] [%emt 00:00:56]} 21.Nd5 {[%clk
00:40:56] [%emt 00:03:58]} 21...Nxd5 {[%clk 00:16:50] [%emt 00:00:36]} 22.exd5 
{[%clk 00:35:42] [%emt 00:05:45]} 22...Bg6 {[%clk 00:16:36] [%emt 00:00:43]} 
23.Bd3 {[%clk 00:36:04] [%emt 00:00:09]} 23...Bxd3 {[%clk 00:16:22] [%emt
00:00:44]} 24.Qxd3 {[%clk 00:36:32] [%emt 00:00:01]} 24...Bd6 {[%clk 00:16:39]
[%emt 00:00:13]} 25.Bd2 {[%clk 00:33:54] [%emt 00:03:08]} 25...Rf8 {[%clk
00:14:53] [%emt 00:02:16]} 26.f4 {[%clk 00:30:22] [%emt 00:04:03]} 26...exf4 
{[%clk 00:09:12] [%emt 00:06:10]} 27.Bxf4 {[%clk 00:30:06] [%emt 00:00:46]} 
27...Rae8 {[%clk 00:04:13] [%emt 00:05:29]} 28.Bxd6 {[%clk 00:29:56] [%emt
00:00:41]} 28...Qxd6 {[%clk 00:04:42] [%emt 00:00:01]} 29.Re2 {[%clk 00:30:18]
[%emt 00:00:08]} 29...Rxe2 {[%clk 00:03:53] [%emt 00:01:19]} 30.Qxe2 {[%clk
00:30:46] [%emt 00:00:01]} 30...Qd7 {[%clk 00:04:18] [%emt 00:00:06]} 31.Re1 
{[%clk 00:28:03] [%emt 00:03:12]} 31...Qxa4 {[%clk 00:04:46] [%emt 00:00:03]} 
32.Qe6+ {[%clk 00:28:19] [%emt 00:00:14]} 32...Rf7 {[%clk 00:05:14] [%emt
00:00:01]} 33.d6 {[%clk 00:20:59] [%emt 00:07:51]} 33...g5 {[%clk 00:05:34]
[%emt 00:00:09]} 34.Qc8+ {[%clk 00:18:41] [%emt 00:02:48]} 34...Kg7 {[%clk
00:05:49] [%emt 00:00:15]} 35.Qxc5 {[%clk 00:17:31] [%emt 00:01:40]} 35...b6 
{[%clk 00:02:22] [%emt 00:03:58]} 36.Qd5 {[%clk 00:14:46] [%emt 00:03:13]} 
36...Rd7 {[%clk 00:01:56] [%emt 00:00:58]} 37.Qe6 {[%clk 00:06:58] [%emt
00:08:18]} 37...Rf7 {[%clk 00:02:10] [%emt 00:00:15]} 38.Qd5 {[%clk 00:04:24]
[%emt 00:03:05]} 38...Rd7 {[%clk 00:02:36] [%emt 00:00:04]} 39.Rd1 {[%clk
00:04:04] [%emt 00:00:50]} 39...Qb3 {[%clk 00:02:26] [%emt 00:00:40]} 40.Rd2 
{[%clk 00:01:42] [%emt 00:02:52]} 40...Qe3+ {[%clk 00:02:31] [%emt 00:00:24]} 
41.Kf1 {[%clk 00:44:56] [%emt 00:07:16]} 41...a4 {[%clk 00:42:04] [%emt
00:10:58]} 1/2-1/2

[Event "FIDE Grand Swiss 2023"]
[Site "Villa Marina, Douglas, Isle of Man"]
[Date "2023.10.27"]
[Round "3.6"]
[White "Rapport, Richard"]
[Black "Volokitin, Andrei"]
[Result "1/2-1/2"]
[WhiteElo "2752"]
[BlackElo "2664"]
[EventDate "2023.10.25"]
[ECO "A34"]
[PlyCount "81"]
[BlackFideId "14107090"]
[TimeControl "40/100 + 20/50 + 15 + 30s/move"]
[WhiteFideId "738590"]

1.c4 {[%clk 01:40:24] [%emt 00:00:35]} 1...Nf6 {[%clk 01:40:47] [%emt 00:00:13]} 
2.Nc3 {[%clk 01:40:40] [%emt 00:00:14]} 2...c5 {[%clk 01:41:06] [%emt 00:00:11]} 
3.g3 {[%clk 01:41:03] [%emt 00:00:07]} 3...d5 {[%clk 01:41:31] [%emt 00:00:05]} 
4.cxd5 {[%clk 01:41:16] [%emt 00:00:18]} 4...Nxd5 {[%clk 01:41:59] [%emt
00:00:02]} 5.Bg2 {[%clk 01:41:36] [%emt 00:00:09]} 5...Nc7 {[%clk 01:42:27]
[%emt 00:00:03]} 6.d3 {[%clk 01:40:33] [%emt 00:01:33]} 6...e5 {[%clk 01:42:39]
[%emt 00:00:18]} 7.Be3 {[%clk 01:40:44] [%emt 00:00:18]} 7...Be7 {[%clk
01:42:45] [%emt 00:00:25]} 8.Rc1 {[%clk 01:41:07] [%emt 00:00:07]} 8...Nd7 
{[%clk 01:42:35] [%emt 00:00:40]} 9.Nf3 {[%clk 01:40:57] [%emt 00:00:38]} 
9...O-O {[%clk 01:33:57] [%emt 00:09:10]} 10.O-O {[%clk 01:40:57] [%emt
00:00:30]} 10...Rb8 {[%clk 01:22:42] [%emt 00:11:45]} 11.a4 {[%clk 01:40:16]
[%emt 00:01:10]} 11...b6 {[%clk 01:15:20] [%emt 00:07:54]} 12.Nb5 {[%clk
01:39:58] [%emt 00:00:47]} 12...a5 {[%clk 00:44:18] [%emt 00:31:32]} 13.Na3 
{[%clk 01:38:43] [%emt 00:01:44]} 13...Ne6 {[%clk 00:26:35] [%emt 00:18:14]} 
14.Nc4 {[%clk 01:35:19] [%emt 00:03:53]} 14...Qc7 {[%clk 00:24:57] [%emt
00:02:09]} 15.Bd2 {[%clk 01:20:47] [%emt 00:15:02]} 15...Bb7 {[%clk 00:24:35]
[%emt 00:00:52]} 16.e4 {[%clk 01:12:50] [%emt 00:08:26]} 16...Bf6 {[%clk
00:19:39] [%emt 00:05:26]} 17.h4 {[%clk 01:09:41] [%emt 00:03:39]} 17...Rbd8 
{[%clk 00:17:18] [%emt 00:02:51]} 18.Qb3 {[%clk 01:07:17] [%emt 00:02:56]} 
18...Ba6 {[%clk 00:15:56] [%emt 00:01:51]} 19.Ne3 {[%clk 01:00:37] [%emt
00:07:10]} 19...Qd6 {[%clk 00:16:10] [%emt 00:00:16]} 20.Nc4 {[%clk 00:56:21]
[%emt 00:04:46]} 20...Bxc4 {[%clk 00:14:36] [%emt 00:02:04]} 21.Rxc4 {[%clk
00:53:48] [%emt 00:03:03]} 21...Nb8 {[%clk 00:14:59] [%emt 00:00:07]} 22.Rfc1 
{[%clk 00:47:54] [%emt 00:06:24]} 22...Nc6 {[%clk 00:14:04] [%emt 00:01:25]} 
23.Be3 {[%clk 00:47:41] [%emt 00:00:43]} 23...Nb4 {[%clk 00:11:33] [%emt
00:03:01]} 24.Bf1 {[%clk 00:46:43] [%emt 00:01:27]} 24...Rd7 {[%clk 00:11:42]
[%emt 00:00:22]} 25.Rd1 {[%clk 00:40:01] [%emt 00:07:12]} 25...Rfd8 {[%clk
00:11:52] [%emt 00:00:20]} 26.Rd2 {[%clk 00:39:53] [%emt 00:00:38]} 26...h5 
{[%clk 00:11:08] [%emt 00:01:13]} 27.Rc1 {[%clk 00:36:32] [%emt 00:03:52]} 
27...g6 {[%clk 00:10:49] [%emt 00:00:49]} 28.Bh3 {[%clk 00:33:48] [%emt
00:03:13]} 28...Qe7 {[%clk 00:09:17] [%emt 00:02:03]} 29.Bxe6 {[%clk 00:28:40]
[%emt 00:05:38]} 29...Qxe6 {[%clk 00:09:44] [%emt 00:00:03]} 30.Qxe6 {[%clk
00:29:03] [%emt 00:00:08]} 30...fxe6 {[%clk 00:10:11] [%emt 00:00:02]} 31.Rcd1 
{[%clk 00:22:48] [%emt 00:06:45]} 31...Rxd3 {[%clk 00:05:55] [%emt 00:04:46]} 
32.Kf1 {[%clk 00:22:00] [%emt 00:01:18]} 32...Kf7 {[%clk 00:04:08] [%emt
00:02:17]} 33.Ke2 {[%clk 00:17:53] [%emt 00:04:37]} 33...Rxd2+ {[%clk 00:04:27]
[%emt 00:00:11]} 34.Rxd2 {[%clk 00:09:38] [%emt 00:08:45]} 34...Rxd2+ {[%clk
00:03:16] [%emt 00:01:41]} 35.Kxd2 {[%clk 00:05:20] [%emt 00:04:48]} 35...Nc6 
{[%clk 00:02:59] [%emt 00:00:48]} 36.Kd3 {[%clk 00:05:43] [%emt 00:00:06]} 
36...Nd4 {[%clk 00:03:24] [%emt 00:00:05]} 37.Ng5+ {[%clk 00:05:15] [%emt
00:00:58]} 37...Bxg5 {[%clk 00:02:53] [%emt 00:01:02]} 38.Bxg5 {[%clk 00:05:38]
[%emt 00:00:06]} 38...Ke8 {[%clk 00:02:51] [%emt 00:00:32]} 39.Bf6 {[%clk
00:05:49] [%emt 00:00:19]} 39...Nc6 {[%clk 00:03:08] [%emt 00:00:12]} 40.Kc4 
{[%clk 00:05:54] [%emt 00:00:26]} 40...Kd7 {[%clk 00:03:30] [%emt 00:00:08]} 
41.Bg7 {[%clk 00:01:19] [%emt 00:05:05]} 1/2-1/2

[Event "FIDE Grand Swiss 2023"]
[Site "Villa Marina, Douglas, Isle of Man"]
[Date "2023.10.27"]
[Round "3.7"]
[White "Sindarov, Javokhir"]
[Black "Aronian, Levon"]
[Result "1-0"]
[WhiteElo "2658"]
[BlackElo "2742"]
[EventDate "2023.10.25"]
[ECO "C65"]
[PlyCount "109"]
[BlackFideId "13300474"]
[TimeControl "40/100 + 20/50 + 15 + 30s/move"]
[WhiteFideId "14205483"]

1.e4 {[%clk 01:40:54] [%emt 00:00:04]} 1...e5 {[%clk 01:40:53] [%emt 00:00:08]} 
2.Nf3 {[%clk 01:41:18] [%emt 00:00:06]} 2...Nc6 {[%clk 01:41:19] [%emt
00:00:04]} 3.Bb5 {[%clk 01:41:41] [%emt 00:00:08]} 3...Nf6 {[%clk 01:41:37]
[%emt 00:00:12]} 4.d3 {[%clk 01:42:05] [%emt 00:00:06]} 4...Bc5 {[%clk 01:42:00]
[%emt 00:00:07]} 5.Ba4 {[%clk 01:42:22] [%emt 00:00:13]} 5...a6 {[%clk 01:39:52]
[%emt 00:02:38]} 6.O-O {[%clk 01:38:40] [%emt 00:04:10]} 6...b5 {[%clk 01:39:41]
[%emt 00:00:42]} 7.Bb3 {[%clk 01:39:06] [%emt 00:00:04]} 7...d6 {[%clk 01:40:05]
[%emt 00:00:05]} 8.c3 {[%clk 01:38:39] [%emt 00:00:58]} 8...h6 {[%clk 01:39:35]
[%emt 00:00:59]} 9.Re1 {[%clk 01:33:35] [%emt 00:05:35]} 9...O-O {[%clk
01:39:28] [%emt 00:00:36]} 10.Nbd2 {[%clk 01:32:28] [%emt 00:01:37]} 10...Bb6 
{[%clk 01:39:19] [%emt 00:00:39]} 11.Nf1 {[%clk 01:32:18] [%emt 00:00:41]} 
11...Ne7 {[%clk 01:39:44] [%emt 00:00:04]} 12.a4 {[%clk 01:30:17] [%emt
00:02:32]} 12...Rb8 {[%clk 01:39:51] [%emt 00:00:23]} 13.Ng3 {[%clk 01:29:25]
[%emt 00:01:22]} 13...Ng6 {[%clk 01:40:03] [%emt 00:00:18]} 14.a5 {[%clk
01:21:48] [%emt 00:08:07]} 14...Ba7 {[%clk 01:39:56] [%emt 00:00:36]} 15.h3 
{[%clk 01:22:16] [%emt 00:00:03]} 15...Re8 {[%clk 01:39:57] [%emt 00:00:29]} 
16.d4 {[%clk 01:09:14] [%emt 00:13:32]} 16...Bb7 {[%clk 01:34:38] [%emt
00:05:49]} 17.Bc2 {[%clk 01:09:32] [%emt 00:00:12]} 17...d5 {[%clk 01:33:39]
[%emt 00:01:29]} 18.Nxe5 {[%clk 00:59:52] [%emt 00:10:11]} 18...Nxe5 {[%clk
01:34:02] [%emt 00:00:07]} 19.dxe5 {[%clk 01:00:18] [%emt 00:00:04]} 19...Nxe4 
{[%clk 01:34:21] [%emt 00:00:11]} 20.Be3 {[%clk 00:54:01] [%emt 00:06:48]} 
20...Bxe3 {[%clk 01:31:52] [%emt 00:02:58]} 21.Rxe3 {[%clk 00:54:17] [%emt
00:00:14]} 21...Qg5 {[%clk 01:28:41] [%emt 00:03:40]} 22.Nxe4 {[%clk 00:50:21]
[%emt 00:04:26]} 22...dxe4 {[%clk 01:29:05] [%emt 00:00:06]} 23.Bxe4 {[%clk
00:50:45] [%emt 00:00:06]} 23...Rxe5 {[%clk 01:27:25] [%emt 00:02:10]} 24.Rg3 
{[%clk 00:50:58] [%emt 00:00:18]} 24...Qf6 {[%clk 01:02:40] [%emt 00:25:14]} 
25.Bxb7 {[%clk 00:51:01] [%emt 00:00:27]} 25...Rxb7 {[%clk 01:03:05] [%emt
00:00:05]} 26.Qd7 {[%clk 00:51:23] [%emt 00:00:07]} 26...Rb8 {[%clk 01:02:56]
[%emt 00:00:39]} 27.Qxc7 {[%clk 00:51:15] [%emt 00:00:39]} 27...Rd8 {[%clk
01:03:10] [%emt 00:00:14]} 28.Rf3 {[%clk 00:50:41] [%emt 00:01:05]} 28...Qe7 
{[%clk 01:03:29] [%emt 00:00:11]} 29.Qxe7 {[%clk 00:51:03] [%emt 00:00:08]} 
29...Rxe7 {[%clk 01:03:54] [%emt 00:00:05]} 30.b4 {[%clk 00:45:14] [%emt
00:06:20]} 30...Rd2 {[%clk 00:56:51] [%emt 00:07:32]} 31.Kf1 {[%clk 00:44:58]
[%emt 00:00:46]} 31...g6 {[%clk 00:43:30] [%emt 00:13:51]} 32.Re1 {[%clk
00:43:50] [%emt 00:01:38]} 32...Rc7 {[%clk 00:43:50] [%emt 00:00:11]} 33.Ree3 
{[%clk 00:42:13] [%emt 00:02:01]} 33...Kg7 {[%clk 00:39:34] [%emt 00:04:52]} 
34.g3 {[%clk 00:40:14] [%emt 00:02:30]} 34...h5 {[%clk 00:38:03] [%emt
00:02:00]} 35.h4 {[%clk 00:40:05] [%emt 00:00:39]} 35...Rc2 {[%clk 00:32:38]
[%emt 00:05:55]} 36.Rd3 {[%clk 00:40:19] [%emt 00:00:16]} 36...f5 {[%clk
00:12:50] [%emt 00:20:17]} 37.Rfe3 {[%clk 00:25:49] [%emt 00:15:00]} 37...Rc6 
{[%clk 00:09:44] [%emt 00:03:36]} 38.Rd7+ {[%clk 00:17:08] [%emt 00:09:11]} 
38...Kf6 {[%clk 00:10:08] [%emt 00:00:06]} 39.Rh7 {[%clk 00:17:28] [%emt
00:00:11]} 39...f4 {[%clk 00:09:25] [%emt 00:01:12]} 40.Ree7 {[%clk 00:17:48]
[%emt 00:00:11]} 40...Kf5 {[%clk 00:08:24] [%emt 00:01:31]} 41.Rhf7+ {[%clk
00:18:11] [%emt 00:00:07]} 41...Rf6 {[%clk 00:08:03] [%emt 00:00:50]} 42.gxf4 
{[%clk 00:16:23] [%emt 00:02:18]} 42...Rxc3 {[%clk 00:03:52] [%emt 00:04:41]} 
43.Re5+ {[%clk 00:16:17] [%emt 00:00:36]} 43...Kxf4 {[%clk 00:04:17] [%emt
00:00:06]} 44.Rxf6+ {[%clk 00:16:44] [%emt 00:00:03]} 44...Kxe5 {[%clk 00:04:41]
[%emt 00:00:05]} 45.Rxa6 {[%clk 00:17:04] [%emt 00:00:10]} 45...Rc4 {[%clk
00:04:12] [%emt 00:01:00]} 46.Rxg6 {[%clk 00:12:59] [%emt 00:04:35]} 46...Rxb4 
{[%clk 00:04:36] [%emt 00:00:06]} 47.Rg5+ {[%clk 00:13:22] [%emt 00:00:07]} 
47...Kf4 {[%clk 00:41:31] [%emt 00:13:35]} 48.Rxh5 {[%clk 00:44:10] [%emt
00:19:42]} 48...Rb2 {[%clk 00:41:49] [%emt 00:00:12]} 49.Rc5 {[%clk 00:39:41]
[%emt 00:04:58]} 49...Kf3 {[%clk 00:30:52] [%emt 00:11:28]} 50.Ke1 {[%clk
00:39:59] [%emt 00:00:12]} 50...b4 {[%clk 00:28:13] [%emt 00:03:09]} 51.h5 
{[%clk 00:39:00] [%emt 00:01:28]} 51...b3 {[%clk 00:27:52] [%emt 00:00:51]} 
52.Rc3+ {[%clk 00:35:50] [%emt 00:03:41]} 52...Ke4 {[%clk 00:25:31] [%emt
00:02:50]} 53.h6 {[%clk 00:36:15] [%emt 00:00:05]} 53...Rb1+ {[%clk 00:25:01]
[%emt 00:01:00]} 54.Kd2 {[%clk 00:36:28] [%emt 00:00:17]} 54...b2 {[%clk
00:22:45] [%emt 00:02:46]} 55.Rb3 {[%clk 00:36:47] [%emt 00:00:12]} 1-0

[Event "FIDE Grand Swiss 2023"]
[Site "Villa Marina, Douglas, Isle of Man"]
[Date "2023.10.27"]
[Round "3.8"]
[White "Cheparinov, Ivan"]
[Black "Yu, Yangyi"]
[Result "1/2-1/2"]
[WhiteElo "2658"]
[BlackElo "2720"]
[EventDate "2023.10.25"]
[ECO "C42"]
[PlyCount "62"]
[BlackFideId "8603820"]
[TimeControl "40/100 + 20/50 + 15 + 30s/move"]
[WhiteFideId "2905540"]

1.e4 {[%clk 01:40:56] [%emt 00:00:03]} 1...e5 {[%clk 01:40:41] [%emt 00:00:19]} 
2.Nf3 {[%clk 01:41:18] [%emt 00:00:09]} 2...Nf6 {[%clk 01:40:57] [%emt
00:00:15]} 3.Nxe5 {[%clk 01:41:14] [%emt 00:00:34]} 3...d6 {[%clk 01:41:18]
[%emt 00:00:08]} 4.Nf3 {[%clk 01:41:40] [%emt 00:00:04]} 4...Nxe4 {[%clk
01:41:38] [%emt 00:00:11]} 5.d4 {[%clk 01:41:35] [%emt 00:00:35]} 5...d5 {[%clk
01:41:40] [%emt 00:00:27]} 6.Bd3 {[%clk 01:41:58] [%emt 00:00:07]} 6...Nc6 
{[%clk 01:41:09] [%emt 00:01:00]} 7.O-O {[%clk 01:42:11] [%emt 00:00:18]} 
7...Be7 {[%clk 01:41:14] [%emt 00:00:25]} 8.Nbd2 {[%clk 01:42:29] [%emt
00:00:13]} 8...Nd6 {[%clk 01:39:21] [%emt 00:02:23]} 9.c3 {[%clk 01:42:33] [%emt
00:00:26]} 9...Bf5 {[%clk 01:39:40] [%emt 00:00:11]} 10.Bc2 {[%clk 01:42:28]
[%emt 00:00:34]} 10...Bxc2 {[%clk 01:38:07] [%emt 00:02:04]} 11.Qxc2 {[%clk
01:41:24] [%emt 00:01:33]} 11...Bf6 {[%clk 01:38:20] [%emt 00:00:18]} 12.Re1+ 
{[%clk 01:41:23] [%emt 00:00:30]} 12...Ne7 {[%clk 01:38:05] [%emt 00:00:45]} 
13.h4 {[%clk 01:41:34] [%emt 00:00:19]} 13...O-O {[%clk 01:29:56] [%emt
00:08:39]} 14.h5 {[%clk 01:41:42] [%emt 00:00:22]} 14...Nef5 {[%clk 01:20:13]
[%emt 00:10:13]} 15.Nf1 {[%clk 01:27:45] [%emt 00:14:26]} 15...Ne4 {[%clk
01:16:34] [%emt 00:04:10]} 16.Bf4 {[%clk 01:27:22] [%emt 00:00:52]} 16...c6 
{[%clk 01:14:36] [%emt 00:02:29]} 17.N1d2 {[%clk 01:13:49] [%emt 00:14:03]} 
17...Nfd6 {[%clk 01:09:51] [%emt 00:05:14]} 18.Nxe4 {[%clk 01:12:41] [%emt
00:01:39]} 18...Nxe4 {[%clk 01:10:11] [%emt 00:00:10]} 19.Nd2 {[%clk 01:12:53]
[%emt 00:00:18]} 19...Nxd2 {[%clk 01:06:18] [%emt 00:04:23]} 20.Qxd2 {[%clk
01:11:55] [%emt 00:01:27]} 20...h6 {[%clk 01:00:36] [%emt 00:06:13]} 21.Re2 
{[%clk 01:08:35] [%emt 00:03:50]} 21...Qd7 {[%clk 00:58:39] [%emt 00:02:26]} 
22.Be5 {[%clk 01:06:06] [%emt 00:03:00]} 22...Bxe5 {[%clk 00:58:47] [%emt
00:00:22]} 23.Rxe5 {[%clk 01:06:30] [%emt 00:00:05]} 23...Rae8 {[%clk 00:59:04]
[%emt 00:00:14]} 24.Rae1 {[%clk 01:06:51] [%emt 00:00:09]} 24...Rxe5 {[%clk
00:59:28] [%emt 00:00:05]} 25.Rxe5 {[%clk 01:07:15] [%emt 00:00:07]} 25...Re8 
{[%clk 00:59:42] [%emt 00:00:16]} 26.Qe3 {[%clk 01:07:16] [%emt 00:00:28]} 
26...Kf8 {[%clk 00:59:50] [%emt 00:00:22]} 27.f3 {[%clk 01:06:22] [%emt
00:01:24]} 27...Rxe5 {[%clk 00:58:51] [%emt 00:01:29]} 28.Qxe5 {[%clk 01:06:49]
[%emt 00:00:03]} 28...Qe7 {[%clk 00:58:46] [%emt 00:00:35]} 29.Qb8+ {[%clk
01:07:14] [%emt 00:00:05]} 29...Qe8 {[%clk 00:59:14] [%emt 00:00:01]} 30.Qxb7 
{[%clk 01:07:30] [%emt 00:00:14]} 30...Qe1+ {[%clk 00:59:39] [%emt 00:00:05]} 
31.Kh2 {[%clk 01:07:58] [%emt 00:00:02]} 31...Qh4+ {[%clk 01:00:03] [%emt
00:00:06]} 1/2-1/2